bitfinex-derivatives/quotes_BTCF0:USTF0_20241223
["timestamp","ask_amount","ask_price","bid_price","bid_amount"]
[1734959719670,0.3618,95909.0,95908.0,0.009]
[1734959723583,0.001,95909.0,95908.0,0.009]
[1734959724268,0.001,95909.0,95901.0,0.34998799]
[1734959724468,0.001,95909.0,95907.0,0.052188]
[1734959725266,0.003,95909.0,95907.0,0.052188]
[1734959725474,0.002,95909.0,95907.0,0.052188]
[1734959725674,0.003,95909.0,95907.0,0.058188]
[1734959726181,0.01043298,95917.0,95916.0,0.052183]
[1734959726380,0.54722225,95920.0,95919.0,0.052182]
[1734959726381,0.3608,95920.0,95919.0,0.052182]
[1734959726572,0.18642225,95924.0,95911.0,0.3608]
[1734959726879,0.19690942,95924.0,95923.0,0.052179]
[1734959727682,0.01048717,95924.0,95923.0,0.052179]
[1734959727895,0.6523,95929.0,95927.0,0.052177]
[1734959729279,0.05074548,95928.0,95927.0,0.052177]
[1734959729776,0.05074548,95928.0,95927.0,0.053177]
[1734959730486,0.05074548,95928.0,95927.0,0.052177]
[1734959730684,0.05074548,95928.0,95927.0,0.053177]
[1734959731485,0.05174548,95928.0,95927.0,0.056177]
[1734959732384,0.001,95928.0,95927.0,0.056177]
[1734959732987,0.18642225,95934.0,95933.0,0.052174]
[1734959733387,0.19684437,95934.0,95933.0,0.052174]
[1734959734287,0.06116405,95934.0,95933.0,0.052174]
[1734959734487,0.06116405,95934.0,95924.0,0.34497399]
[1734959734881,0.06216405,95934.0,95933.0,0.003]
[1734959735687,0.01142212,95934.0,95933.0,0.003]
[1734959735886,0.01042212,95934.0,95905.0,0.3608]
[1734959736085,0.01042212,95934.0,95872.0,0.052207]
[1734959736086,0.08361451,95923.0,95912.0,0.052185]
[1734959736285,0.3608,95919.0,95912.0,0.052185]
[1734959736477,0.2847,95922.0,95904.0,0.1401]
[1734959736787,0.2847,95922.0,95916.0,0.052183]
[1734959738489,0.43959029,95922.0,95916.0,0.052183]
[1734959739286,0.44999144,95922.0,95916.0,0.052183]
[1734959739481,0.45299144,95922.0,95916.0,0.052183]
[1734959739682,0.45799144,95922.0,95916.0,0.052183]
[1734959740080,0.3608,95919.0,95911.0,0.052186]
[1734959740284,0.3608,95919.0,95915.0,0.052184]
[1734959741590,0.3608,95919.0,95916.0,0.052183]
[1734959742597,0.3628,95919.0,95916.0,0.052183]
[1734959742781,0.3648,95919.0,95918.0,0.052182]
[1734959743388,0.3628,95919.0,95918.0,0.052182]
[1734959743588,0.3638,95919.0,95918.0,0.052182]
[1734959743788,0.003,95919.0,95918.0,0.052182]
[1734959744189,0.002,95919.0,95918.0,0.052182]
[1734959744494,0.003,95919.0,95918.0,0.052182]
[1734959747103,0.002,95919.0,95918.0,0.052182]
[1734959747395,0.006,95919.0,95918.0,0.052182]
[1734959748492,0.004,95919.0,95918.0,0.052182]
[1734959748703,0.011,95919.0,95918.0,0.052182]
[1734959750293,0.011,95919.0,95918.0,0.06245595]
[1734959752697,0.09295994,95925.0,95924.0,0.052179]
[1734959752898,0.15489029,95936.0,95935.0,0.052173]
[1734959753100,0.15489029,95936.0,95935.0,0.412973]
[1734959754303,0.00156433,95939.0,95935.0,0.28879999]
[1734959754503,0.00156433,95939.0,95938.0,0.052171]
[1734959756107,0.00156433,95939.0,95938.0,0.055171]
[1734959757112,0.00156433,95939.0,95938.0,0.057171]
[1734959758307,0.2836,95959.0,95938.0,0.057171]
[1734959758611,0.2836,95959.0,95958.0,0.05216]
[1734959759003,0.2836,95959.0,95952.0,0.052163]
[1734959759309,0.29406467,95959.0,95936.0,0.12239614]
[1734959759513,0.3608,95943.0,95936.0,0.12239614]
[1734959759709,0.1382,95942.0,95936.0,0.17456814]
[1734959760208,0.2818,95941.0,95936.0,0.12239614]
[1734959760409,0.052174,95933.0,95931.0,0.23972028]
[1734959760710,0.3608,95932.0,95917.0,0.3713708]
[1734959761008,0.7216,95932.0,95919.0,0.052181]
[1734959761614,0.3608,95921.0,95919.0,0.052181]
[1734959763214,0.3618,95921.0,95919.0,0.052181]
[1734959763508,0.3638,95921.0,95919.0,0.052181]
[1734959763814,0.002,95921.0,95919.0,0.052181]
[1734959764012,0.006,95921.0,95919.0,0.052181]
[1734959764214,0.006,95921.0,95920.0,0.1385]
[1734959764911,0.013,95921.0,95920.0,0.1385]
[1734959765213,0.013,95921.0,95920.0,0.4993]
[1734959765514,0.01,95921.0,95920.0,0.4993]
[1734959766301,0.013,95921.0,95920.0,0.4993]
[1734959767016,0.009,95921.0,95920.0,0.7817]
[1734959767208,0.013,95921.0,95920.0,0.7817]
[1734959767907,0.004,95921.0,95920.0,0.7817]
[1734959768213,0.013,95921.0,95920.0,0.7817]
[1734959768617,0.009,95921.0,95920.0,0.7817]
[1734959769007,0.009,95921.0,95920.0,0.7922199]
[1734959769303,0.12373889,95934.0,95933.0,0.052174]
[1734959770109,0.12373889,95934.0,95933.0,0.41409416]
[1734959770517,0.12373889,95941.0,95933.0,0.41409416]
[1734959770717,0.12373889,95941.0,95939.0,0.052171]
[1734959771314,0.12373889,95941.0,95940.0,0.00112016]
[1734959772318,0.12373889,95950.0,95949.0,0.052165]
[1734959773419,0.12373889,95950.0,95949.0,0.05328516]
[1734959773714,0.12373889,95950.0,95949.0,0.41408516]
[1734959773914,0.12373889,95950.0,95949.0,0.00112016]
[1734959774115,0.05217,95941.0,95919.0,0.31025581]
[1734959774316,0.3608,95934.0,95919.0,0.31025581]
[1734959774518,0.3608,95934.0,95929.0,0.052176]
[1734959774721,0.3608,95934.0,95923.0,0.052179]
[1734959775019,0.1483,95933.0,95924.0,0.052179]
[1734959775316,0.1483,95933.0,95925.0,0.052178]
[1734959775518,0.3608,95926.0,95919.0,0.31025581]
[1734959775918,0.3608,95926.0,95918.0,0.052182]
[1734959776618,0.3608,95926.0,95924.0,0.052178]
[1734959778531,0.3608,95926.0,95924.0,0.055178]
[1734959778532,0.4856013,95926.0,95924.0,0.055178]
[1734959778716,0.1248013,95926.0,95924.0,0.055178]
[1734959778917,0.1248013,95926.0,95924.0,0.058178]
[1734959779619,0.1462,95927.0,95924.0,0.003]
[1734959779811,0.001,95926.0,95925.0,0.052178]
[1734959780616,0.005,95926.0,95925.0,0.052178]
[1734959781212,0.004,95926.0,95925.0,0.052178]
[1734959781417,0.002,95926.0,95925.0,0.052178]
[1734959781916,0.011,95926.0,95925.0,0.053178]
[1734959782123,0.013,95926.0,95925.0,0.053178]
[1734959782509,0.012,95926.0,95925.0,0.053178]
[1734959782921,0.011,95926.0,95925.0,0.06347817]
[1734959785527,0.4846013,95944.0,95943.0,0.052169]
[1734959786725,0.4846013,95944.0,95943.0,0.057169]
[1734959787117,0.3608,95944.0,95943.0,0.057169]
[1734959789418,0.3608,95944.0,95937.0,0.34596899]
[1734959789926,0.3608,95944.0,95943.0,0.052169]
[1734959791717,0.3608,95944.0,95943.0,0.003]
[1734959791923,0.052174,95934.0,95919.0,0.052181]
[1734959792119,0.6608,95944.0,95910.0,0.31165581]
[1734959792120,0.44441451,95930.0,95910.0,0.31165581]
[1734959792425,0.3608,95916.0,95914.0,0.05374772]
[1734959795023,0.3698,95916.0,95915.0,0.1343]
[1734959795419,0.3638,95916.0,95915.0,0.1343]
[1734959795618,0.3638,95916.0,95914.0,0.05374772]
[1734959795619,0.3608,95916.0,95914.0,0.05574772]
[1734959795829,0.3608,95916.0,95914.0,0.05674772]
[1734959796926,0.12386751,95915.0,95914.0,0.05674772]
[1734959797127,0.12386751,95915.0,95914.0,0.05474772]
[1734959797518,0.12386751,95915.0,95914.0,0.05374772]
[1734959797723,0.12386751,95915.0,95914.0,0.05474772]
[1734959797932,0.49366751,95916.0,95914.0,0.05474772]
[1734959798322,0.003,95915.0,95914.0,0.05474772]
[1734959798918,0.009,95915.0,95914.0,0.05474772]
[1734959799134,0.006,95915.0,95914.0,0.05474772]
[1734959800634,0.009,95915.0,95914.0,0.05474772]
[1734959805330,0.003,95915.0,95914.0,0.05374772]
[1734959805530,0.009,95915.0,95914.0,0.05474772]
[1734959806639,0.006,95915.0,95914.0,0.05474772]
[1734959806843,0.008,95915.0,95914.0,0.05474772]
[1734959807437,0.006,95915.0,95914.0,0.05474772]
[1734959807639,0.008,95915.0,95914.0,0.05474772]
[1734959808040,0.002,95915.0,95914.0,0.05374772]
[1734959808240,0.007,95915.0,95914.0,0.05374772]
[1734959808636,0.002,95915.0,95914.0,0.05374772]
[1734959808941,0.007,95915.0,95914.0,0.05374772]
[1734959809535,0.12386751,95923.0,95922.0,0.05218]
[1734959809736,0.15489029,95929.0,95928.0,0.052177]
[1734959810135,0.21711333,95950.0,95935.0,0.052173]
[1734959810335,0.21711333,95950.0,95935.0,0.412973]
[1734959810537,0.1547284,95944.0,95936.0,0.052172]
[1734959810744,0.1547284,95944.0,95943.0,0.052169]
[1734959811936,0.3608,95952.0,95935.0,0.37334358]
[1734959812137,0.3608,95952.0,95951.0,0.052164]
[1734959813543,0.3608,95952.0,95951.0,0.053164]
[1734959813943,0.3608,95952.0,95951.0,0.054164]
[1734959814347,0.3608,95952.0,95936.0,0.03433599]
[1734959814943,0.3608,95952.0,95951.0,0.052164]
[1734959815955,0.6608,95952.0,95914.0,0.31181953]
[1734959816146,0.3608,95926.0,95921.0,0.05218]
[1734959816340,0.3608,95926.0,95914.0,0.31181953]
[1734959816546,0.1326,95925.0,95920.0,0.052181]
[1734959816747,0.1326,95925.0,95914.0,0.00156372]
[1734959817048,0.3608,95915.0,95914.0,0.00156372]
[1734959817249,0.3608,95915.0,95907.0,0.01029225]
[1734959817446,0.3608,95908.0,95907.0,0.01029225]
[1734959817651,0.3608,95908.0,95896.0,0.31025581]
[1734959817847,0.3608,95897.0,95896.0,0.31025581]
[1734959818047,0.24903,95897.0,95896.0,0.31025581]
[1734959818248,0.24903,95897.0,95890.0,0.4235678]
[1734959818249,0.24903,95897.0,95890.0,0.053677]
[1734959818450,0.24903,95897.0,95890.0,0.052197]
[1734959819044,0.24903,95897.0,95892.0,0.052196]
[1734959819243,0.25103,95897.0,95892.0,0.052196]
[1734959819748,0.25103,95897.0,95896.0,0.002]
[1734959820346,0.24903,95897.0,95896.0,0.002]
[1734959820558,0.24903,95897.0,95890.0,0.001]
[1734959821350,0.25103,95897.0,95890.0,0.001]
[1734959821852,0.25103,95897.0,95886.0,0.052199]
[1734959822054,0.25103,95897.0,95896.0,0.001]
[1734959822453,0.25103,95897.0,95887.0,0.08361451]
[1734959822642,0.25103,95897.0,95896.0,0.052194]
[1734959822643,0.25303,95897.0,95896.0,0.052194]
[1734959823040,0.25103,95897.0,95896.0,0.052194]
[1734959823247,0.25203,95897.0,95896.0,0.055194]
[1734959823447,0.25103,95897.0,95896.0,0.055194]
[1734959823748,0.002,95897.0,95896.0,0.055194]
[1734959824137,0.01139924,95897.0,95896.0,0.055194]
[1734959824344,0.001,95897.0,95896.0,0.058194]
[1734959824742,0.001,95897.0,95896.0,0.006]
[1734959824954,0.001,95897.0,95896.0,0.003]
[1734959825153,0.002,95897.0,95896.0,0.003]
[1734959825347,0.002,95897.0,95896.0,0.004]
[1734959825747,0.3628,95897.0,95896.0,0.004]
[1734959826445,0.3648,95897.0,95884.0,0.0522]
[1734959826641,0.08361451,95894.0,95884.0,0.0522]
[1734959827652,0.08361451,95894.0,95885.0,0.0522]
[1734959828450,0.08361451,95894.0,95873.0,0.1378]
[1734959828657,0.3618,95897.0,95892.0,0.052196]
[1734959828859,0.3618,95897.0,95890.0,0.052197]
[1734959829053,0.3618,95897.0,95887.0,0.052199]
[1734959829961,0.001,95894.0,95892.0,0.004]
[1734959830457,0.35169686,95897.0,95889.0,0.052198]
[1734959830654,0.35769686,95897.0,95876.0,0.3608]
[1734959830952,0.08361451,95890.0,95882.0,0.052201]
[1734959831159,0.08361451,95890.0,95883.0,0.052201]
[1734959831353,0.08361451,95890.0,95888.0,0.052198]
[1734959831658,0.35569686,95897.0,95893.0,0.052195]
[1734959831853,0.35569686,95897.0,95894.0,0.052195]
[1734959832060,0.35169686,95897.0,95894.0,0.052195]
[1734959832456,0.35169686,95897.0,95892.0,0.004]
[1734959832658,0.35169686,95897.0,95878.0,0.3608]
[1734959832857,0.35269686,95897.0,95893.0,0.004]
[1734959833251,0.35169686,95897.0,95878.0,0.3608]
[1734959833448,0.35269686,95897.0,95895.0,0.052195]
[1734959833858,0.35269686,95897.0,95894.0,0.004]
[1734959834652,0.35269686,95897.0,95895.0,0.003]
[1734959835761,0.35269686,95897.0,95895.0,0.055194]
[1734959835960,0.35169686,95897.0,95895.0,0.055194]
[1734959836162,0.35269686,95897.0,95895.0,0.059194]
[1734959836561,0.35269686,95897.0,95895.0,0.056194]
[1734959837858,0.35269686,95897.0,95895.0,0.059194]
[1734959838660,0.35269686,95897.0,95895.0,0.007]
[1734959845854,0.35269686,95897.0,95895.0,0.006]
[1734959846067,0.35169686,95897.0,95895.0,0.002]
[1734959846274,0.05076397,95896.0,95895.0,0.006]
[1734959846867,0.05076397,95896.0,95895.0,0.007]
[1734959848757,0.05176397,95896.0,95895.0,0.007]
[1734959849858,0.05176397,95896.0,95873.0,0.4986]
[1734959850062,0.05176397,95896.0,95882.0,0.052202]
[1734959850262,0.05176397,95896.0,95882.0,0.3608]
[1734959850463,0.05176397,95896.0,95889.0,0.052198]
[1734959851371,0.05376397,95896.0,95889.0,0.052198]
[1734959852166,0.18622296,95890.0,95889.0,0.052198]
[1734959852479,0.18622296,95890.0,95889.0,0.056198]
[1734959853664,0.001,95890.0,95889.0,0.056198]
[1734959854065,0.001,95890.0,95889.0,0.052198]
[1734959854674,0.008,95890.0,95889.0,0.052198]
[1734959855066,0.008,95890.0,95889.0,0.06245475]
[1734959855267,0.01,95890.0,95889.0,0.06245475]
[1734959855467,0.01,95890.0,95889.0,0.052198]
[1734959856072,0.01,95890.0,95883.0,0.2724]
[1734959856779,0.01,95890.0,95888.0,0.052198]
[1734959857186,0.01,95890.0,95883.0,0.2724]
[1734959857387,0.007,95890.0,95883.0,0.2724]
[1734959858081,0.15522884,95886.0,95883.0,0.2724]
[1734959859489,0.15522884,95885.0,95883.0,0.2724]
[1734959860993,0.0507623,95885.0,95883.0,0.2734]
[1734959861393,0.0507623,95885.0,95883.0,0.002]
[1734959861992,0.18622296,95890.0,95883.0,0.002]
[1734959862493,0.18622296,95890.0,95883.0,0.001]
[1734959862695,0.18622296,95890.0,95883.0,0.002]
[1734959863097,0.0507623,95890.0,95883.0,0.002]
[1734959863484,0.0517623,95890.0,95883.0,0.001]
[1734959864391,0.0517623,95890.0,95875.0,0.3608]
[1734959864599,0.18622296,95888.0,95875.0,0.3608]
[1734959864791,0.18622296,95888.0,95876.0,0.052205]
[1734959864992,0.18622296,95888.0,95884.0,0.052201]
[1734959865997,0.18622296,95887.0,95876.0,0.001]
[1734959866288,0.18622296,95887.0,95885.0,0.0522]
[1734959867297,0.18622296,95887.0,95878.0,0.052204]
[1734959867494,0.3608,95880.0,95878.0,0.052204]
[1734959868402,0.3608,95880.0,95878.0,0.053204]
[1734959868997,0.3608,95880.0,95878.0,0.052204]
[1734959869198,0.3638,95880.0,95878.0,0.052204]
[1734959869403,0.0507623,95879.0,95878.0,0.052204]
[1734959870307,0.4115623,95879.0,95878.0,0.052204]
[1734959870501,0.0507623,95879.0,95878.0,0.052204]
[1734959870701,0.0597623,95879.0,95878.0,0.052204]
[1734959872805,0.07007399,95879.0,95878.0,0.052204]
[1734959876508,0.07007399,95879.0,95876.0,0.052204]
[1734959876711,0.07007399,95879.0,95878.0,0.052204]
[1734959877613,0.06907399,95879.0,95878.0,0.052204]
[1734959878407,0.07007399,95879.0,95878.0,0.052204]
[1734959878916,0.06907399,95879.0,95878.0,0.052204]
[1734959879309,0.06407399,95879.0,95878.0,0.052204]
[1734959879510,0.07007399,95879.0,95878.0,0.052204]
[1734959886312,3e-07,95879.0,95878.0,0.052204]
[1734959886511,3e-07,95879.0,95878.0,0.413004]
[1734959887520,0.57791333,95901.0,95893.0,0.052196]
[1734959888002,0.58809535,95901.0,95893.0,0.052196]
[1734959888408,0.58809535,95901.0,95899.0,0.052192]
[1734959889218,0.37098202,95901.0,95899.0,0.052192]
[1734959889418,0.37098202,95901.0,95890.0,0.344992]
[1734959889715,0.08361451,95900.0,95899.0,0.003]
[1734959889917,0.37098202,95901.0,95899.0,0.005]
[1734959890119,0.37098202,95901.0,95899.0,0.006]
[1734959890307,0.37098202,95901.0,95899.0,0.058192]
[1734959890729,0.37098202,95901.0,95899.0,0.056192]
[1734959891719,0.37098202,95901.0,95899.0,0.052192]
[1734959892414,0.37098202,95901.0,95899.0,0.054192]
[1734959893011,0.37198202,95901.0,95899.0,0.058192]
[1734959893315,0.37198202,95901.0,95899.0,0.057192]
[1734959893517,0.37098202,95901.0,95899.0,0.057192]
[1734959893920,0.37098202,95901.0,95899.0,0.056192]
[1734959894119,0.37098202,95901.0,95899.0,0.057192]
[1734959894418,0.37098202,95901.0,95887.0,0.34599199]
[1734959895020,0.37098202,95901.0,95899.0,0.056192]
[1734959895619,0.37398202,95901.0,95899.0,0.052192]
[1734959895821,0.003,95901.0,95899.0,0.052192]
[1734959896217,0.00156465,95910.0,95909.0,0.052187]
[1734959897422,0.00156465,95910.0,95909.0,0.053187]
[1734959899525,0.00156465,95910.0,95907.0,0.34198699]
[1734959899917,0.00156465,95910.0,95909.0,0.052187]
[1734959901219,4.1e-07,95911.0,95909.0,0.052187]
[1734959901728,0.15501189,95920.0,95909.0,0.052187]
[1734959901930,0.15501189,95920.0,95918.0,0.052182]
[1734959902119,0.15501189,95920.0,95919.0,0.2798]
[1734959903019,0.15601189,95920.0,95919.0,0.2798]
[1734959903424,0.001,95920.0,95919.0,0.2798]
[1734959904125,0.003,95920.0,95919.0,0.331982]
[1734959904326,0.003,95920.0,95919.0,0.25998199]
[1734959904534,0.001,95920.0,95919.0,0.25998199]
[1734959904729,0.004,95920.0,95919.0,0.25998199]
[1734959905437,0.09280712,95921.0,95919.0,0.25998199]
[1734959905640,1.2e-07,95921.0,95920.0,0.3608]
[1734959905932,0.00156446,95939.0,95920.0,0.3608]
[1734959906133,0.00156446,95939.0,95938.0,0.052171]
[1734959907526,0.00156446,95939.0,95938.0,0.054171]
[1734959908518,0.00256446,95939.0,95938.0,0.058171]
[1734959909425,0.00256446,95939.0,95933.0,0.34697099]
[1734959910131,0.00256446,95939.0,95938.0,0.052171]
[1734959910730,0.00156446,95939.0,95938.0,0.052171]
[1734959910937,0.00256446,95939.0,95938.0,0.052171]
[1734959911335,0.00156446,95939.0,95938.0,0.052171]
[1734959911639,0.00256446,95939.0,95938.0,0.052171]
[1734959914342,0.00256446,95939.0,95933.0,0.32714198]
[1734959914825,0.00256446,95939.0,95938.0,0.052171]
[1734959915934,0.00156446,95939.0,95938.0,0.052171]
[1734959916242,0.00256446,95939.0,95938.0,0.052171]
[1734959916839,0.00256446,95939.0,95938.0,0.053171]
[1734959919434,0.00256446,95939.0,95933.0,0.67965282]
[1734959919634,0.00256446,95939.0,95938.0,0.052171]
[1734959921836,0.00156446,95939.0,95938.0,0.052171]
[1734959922037,0.00256446,95939.0,95938.0,0.052171]
[1734959924343,0.00256446,95939.0,95937.0,0.12337099]
[1734959924545,0.00256446,95939.0,95938.0,0.052171]
[1734959925540,4.6e-07,95939.0,95938.0,0.052171]
[1734959926136,0.001,95939.0,95938.0,0.052171]
[1734959926339,0.143,95949.0,95938.0,0.052171]
[1734959926538,0.143,95949.0,95948.0,0.052166]
[1734959927652,0.143,95949.0,95948.0,0.053166]
[1734959928643,0.143,95949.0,95948.0,0.052166]
[1734959928842,0.144,95949.0,95948.0,0.053166]
[1734959929352,0.144,95949.0,95945.0,0.34196599]
[1734959930037,0.144,95949.0,95948.0,0.052166]
[1734959930446,0.01035682,95957.0,95956.0,0.052166]
[1734959930750,0.1347,95960.0,95959.0,0.052164]
[1734959931046,0.14487556,95960.0,95959.0,0.052164]
[1734959931250,0.29988745,95960.0,95959.0,0.052164]
[1734959932541,0.19560265,95960.0,95959.0,0.052164]
[1734959933649,0.06090265,95960.0,95959.0,0.052164]
[1734959933843,0.05072709,95960.0,95959.0,0.052164]
[1734959934554,0.05072709,95960.0,95956.0,0.03232999]
[1734959934955,0.05072709,95960.0,95959.0,0.052164]
[1734959935453,0.15503834,95960.0,95959.0,0.052165]
[1734959936451,0.05072709,95962.0,95948.0,0.06536322]
[1734959936452,0.05072709,95962.0,95961.0,0.052164]
[1734959938347,0.05172709,95962.0,95961.0,0.052164]
[1734959938755,0.05272709,95962.0,95961.0,0.052164]
[1734959939456,0.05272709,95962.0,95945.0,0.18757736]
[1734959939756,0.3608,95946.0,95942.0,0.052174]
[1734959939957,0.3608,95946.0,95935.0,0.052177]
[1734959939958,0.2756,95945.0,95935.0,0.052177]
[1734959940158,0.3608,95936.0,95935.0,0.052177]
[1734959941457,0.3678,95936.0,95935.0,0.053177]
[1734959941957,0.3608,95936.0,95935.0,0.052177]
[1734959942152,0.3628,95936.0,95935.0,0.052177]
[1734959942348,0.3628,95936.0,95928.0,0.05374449]
[1734959942757,0.1411,95935.0,95928.0,0.05374449]
[1734959943158,0.1411,95935.0,95930.0,0.05218]
[1734959943366,0.1411,95935.0,95932.0,0.052179]
[1734959944354,0.1421,95935.0,95932.0,0.052179]
[1734959944556,0.05072709,95934.0,95932.0,0.052179]
[1734959944951,0.05072709,95934.0,95932.0,0.056179]
[1734959946954,0.05072709,95934.0,95932.0,0.052179]
[1734959947155,0.05172709,95934.0,95932.0,0.056179]
[1734959947956,0.05172709,95934.0,95933.0,0.1408]
[1734959949162,0.001,95934.0,95933.0,0.1408]
[1734959949363,0.001,95934.0,95932.0,0.056179]
[1734959949559,0.3608,95933.0,95932.0,0.004]
[1734959949859,0.6442,95933.0,95932.0,0.004]
[1734959950064,0.6442,95933.0,95928.0,0.00156349]
[1734959950463,0.69494141,95933.0,95927.0,0.052182]
[1734959950659,0.69694141,95933.0,95927.0,0.052182]
[1734959950868,0.69794141,95933.0,95927.0,0.052182]
[1734959951060,0.69794141,95933.0,95916.0,0.1348]
[1734959951256,0.3608,95923.0,95916.0,0.1348]
[1734959953062,0.3608,95923.0,95922.0,0.052185]
[1734959953563,0.3668,95923.0,95922.0,0.052185]
[1734959954365,0.3668,95923.0,95916.0,0.11498499]
[1734959954766,0.3628,95923.0,95922.0,0.003]
[1734959954960,0.3628,95923.0,95922.0,0.055185]
[1734959955259,0.37404512,95923.0,95922.0,0.055185]
[1734959956856,0.3608,95923.0,95922.0,0.055185]
[1734959957258,0.3608,95923.0,95922.0,0.056185]
[1734959959158,0.01332903,95929.0,95928.0,0.052182]
[1734959959467,0.15461265,95930.0,95923.0,0.11318199]
[1734959959965,0.15461265,95930.0,95928.0,0.052182]
[1734959960564,0.15461265,95930.0,95929.0,0.3608]
[1734959960767,0.15461265,95936.0,95935.0,0.052178]
[1734959961753,0.34681333,95954.0,95929.0,0.3608]
[1734959961754,0.12368671,95943.0,95941.0,0.052175]
[1734959963255,0.15461265,95947.0,95946.0,0.052172]
[1734959964264,0.05073607,95948.0,95946.0,0.052172]
[1734959964568,0.05073607,95948.0,95931.0,0.11867199]
[1734959964765,0.05073607,95948.0,95946.0,0.052172]
[1734959966164,0.05073607,95948.0,95946.0,0.053172]
[1734959967168,0.05073607,95948.0,95947.0,0.1364]
[1734959968565,0.05073607,95948.0,95947.0,0.2773]
[1734959969376,0.05173607,95948.0,95947.0,0.20629999]
[1734959970768,0.15589635,95948.0,95947.0,0.20629999]
[1734959972677,0.15589635,95948.0,95947.0,0.06539999]
[1734959973389,0.15489635,95948.0,95947.0,0.06539999]
[1734959974479,0.15489635,95948.0,95947.0,0.001]
[1734959975976,0.12395491,95948.0,95947.0,0.052172]
[1734959976171,0.12495491,95948.0,95947.0,0.052172]
[1734959977278,0.12495491,95948.0,95947.0,0.195372]
[1734959977581,0.001,95948.0,95947.0,0.195372]
[1734959979184,0.001,95948.0,95947.0,0.20870391]
[1734959979383,0.001,95948.0,95947.0,0.1367039]
[1734959980285,0.12395491,95956.0,95947.0,0.1888759]
[1734959980581,0.12395491,95956.0,95955.0,0.052167]
[1734959981582,0.2793,95968.0,95955.0,0.052167]
[1734959981583,0.12395491,95960.0,95955.0,0.052167]
[1734959982678,0.12395491,95960.0,95955.0,0.053167]
[1734959983677,0.12395491,95960.0,95955.0,0.052167]
[1734959984383,0.12395491,95960.0,95947.0,0.0456709]
[1734959984974,0.12395491,95960.0,95955.0,0.052167]
[1734959985378,0.12395491,95958.0,95955.0,0.052167]
[1734959986279,0.12395491,95958.0,95957.0,0.052166]
[1734959986589,0.15489635,95964.0,95963.0,0.052163]
[1734959987984,0.15489635,95965.0,95954.0,0.08361451]
[1734959988187,0.15489635,95965.0,95964.0,0.052162]
[1734959989384,0.15489635,95965.0,95956.0,0.052167]
[1734959989589,0.05072411,95967.0,95966.0,0.052161]
[1734959990183,0.18612411,95967.0,95966.0,0.052161]
[1734959990888,0.19012411,95967.0,95966.0,0.052161]
[1734959991086,0.19012411,95967.0,95960.0,0.052164]
[1734959991289,0.3608,95961.0,95952.0,0.052168]
[1734959991490,0.3608,95961.0,95957.0,0.052166]
[1734959991789,0.3608,95961.0,95958.0,0.052165]
[1734959992692,0.3628,95961.0,95958.0,0.052165]
[1734959992990,0.3618,95961.0,95958.0,0.052165]
[1734959993183,0.3638,95961.0,95958.0,0.052165]
[1734959993383,0.05072411,95960.0,95958.0,0.052165]
[1734959993582,0.052165,95959.0,95935.0,0.00156333]
[1734959993786,0.052178,95936.0,95920.0,0.052186]
[1734959994089,0.3608,95923.0,95921.0,0.052186]
[1734959994484,0.3608,95923.0,95912.0,0.05219]
[1734959994994,0.3608,95913.0,95912.0,0.05219]
[1734959996179,0.41152411,95913.0,95912.0,0.05219]
[1734959997101,0.41552411,95913.0,95912.0,0.05219]
[1734959997395,0.41752411,95913.0,95912.0,0.05219]
[1734959997598,0.3668,95913.0,95912.0,0.05219]
[1734959999096,0.3831603,95913.0,95912.0,0.05219]
[1734960000286,0.3668,95913.0,95912.0,0.05219]
[1734960000586,0.006,95913.0,95912.0,0.05219]
[1734960005895,0.006,95913.0,95912.0,0.41299]
[1734960007896,0.2814,95929.0,95912.0,0.3608]
[1734960008102,0.12364887,95931.0,95930.0,0.052181]
[1734960009088,0.12364887,95931.0,95926.0,0.3608]
[1734960009089,0.12464887,95931.0,95913.0,0.1422]
[1734960009295,0.3608,95922.0,95910.0,0.1333]
[1734960009498,0.3608,95922.0,95921.0,0.052186]
[1734960009698,0.3618,95931.0,95928.0,0.052182]
[1734960010004,0.3618,95931.0,95929.0,0.052181]
[1734960010194,0.3608,95931.0,95929.0,0.052181]
[1734960011297,0.3608,95931.0,95929.0,0.054181]
[1734960011902,0.3618,95931.0,95929.0,0.054181]
[1734960012602,0.48544887,95931.0,95929.0,0.061181]
[1734960013900,0.12364887,95930.0,95929.0,0.061181]
[1734960015101,0.12364887,95930.0,95929.0,0.054181]
[1734960015304,0.12464887,95930.0,95929.0,0.057181]
[1734960015502,0.001,95930.0,95929.0,0.057181]
[1734960017704,0.001,95930.0,95929.0,0.005]
[1734960019701,0.05174741,95930.0,95929.0,0.005]
[1734960020610,0.07206438,95930.0,95929.0,0.005]
[1734960022602,0.25827796,95930.0,95929.0,0.005]
[1734960023510,0.23796099,95930.0,95929.0,0.005]
[1734960024113,0.05174741,95930.0,95929.0,0.005]
[1734960025006,0.00156401,95943.0,95931.0,0.05218]
[1734960025210,0.00156401,95943.0,95940.0,0.052175]
[1734960025511,0.00156401,95943.0,95942.0,0.052174]
[1734960026921,0.18795414,95943.0,95942.0,0.052174]
[1734960027127,0.18795414,95943.0,95942.0,0.053174]
[1734960027822,0.18795414,95943.0,95942.0,0.054174]
[1734960028428,0.00156401,95943.0,95942.0,0.054174]
[1734960029440,0.00156401,95943.0,95937.0,0.34297399]
[1734960030333,0.00156401,95943.0,95942.0,0.052174]
[1734960031644,0.15676895,95943.0,95942.0,0.052174]
[1734960032138,0.15676895,95943.0,95942.0,0.053174]
[1734960032339,0.15676895,95943.0,95942.0,0.054174]
[1734960034336,0.15676895,95943.0,95939.0,0.34297399]
[1734960035046,0.15676895,95943.0,95942.0,0.052174]
[1734960035543,0.00156401,95943.0,95942.0,0.052174]
[1734960036428,0.00156401,95943.0,95942.0,0.053174]